fUSD/lending_fUSD_20250410
["ID","MTS","AMOUNT","RATE_DAILY","PERIOD"]
[357654976,1744278439363,-291.912,0.00042177,63]
[357654977,1744278439387,-150.0,0.00042177,2]
[357654978,1744278439411,-2978.84088659,0.00042196,2]
[357654981,1744278445103,-252.81,0.00041554,2]
[357654982,1744278445124,-647.40689171,0.00042196,2]
[357654983,1744278451087,-1388.8,0.00039,120]
[357654984,1744278451119,-1016.02005076,0.00042196,2]
[357654988,1744278587565,500.01,0.00035,30]
[357655003,1744278631815,-169.7,0.000401,2]
[357655005,1744278631826,-436.07752899,0.00042,5]
[357655006,1744278631929,-63.92247101,0.00042,5]
[357655007,1744278631939,-305.18,0.00042017,5]
[357655008,1744278631949,-509.12,0.000421,7]
[357655009,1744278631959,-300.07,0.000421,5]
[357655010,1744278631969,-300.52,0.000421,5]
[357655011,1744278631979,-300.92,0.000421,5]
[357655012,1744278631990,-303.36,0.000421,5]
[357655013,1744278632000,-304.09,0.000421,5]
[357655014,1744278632010,-305.96,0.000421,5]
[357655015,1744278632019,-5506.21753307,0.00042196,2]
[357655016,1744278632031,-13751.51463787,0.00042196,2]
[357655017,1744278632041,-304.11,0.00042343,5]
[357655018,1744278632051,-301.78,0.00042343,5]
[357655019,1744278632060,-300.73,0.00042343,5]
[357655020,1744278632070,-303.45,0.00042343,5]
[357655021,1744278632079,-304.06,0.00042343,5]
[357655022,1744278632089,-150.0,0.00042369,120]
[357655023,1744278632099,-935.0368794,0.00042423,4]
[357655024,1744278632108,-200.0,0.00042459,7]
[357655025,1744278632117,-700.0,0.00042498,16]
[357655026,1744278632127,-700.0,0.00042498,16]
[357655027,1744278632138,-700.0,0.00042498,16]
[357655028,1744278632148,-700.0,0.00042498,16]
[357655029,1744278632158,-700.0,0.00042498,16]
[357655030,1744278632167,-700.0,0.000425,16]
[357655031,1744278632176,-700.0,0.000425,16]
[357655032,1744278632185,-700.0,0.000425,16]
[357655033,1744278632195,-700.0,0.000425,16]
[357655034,1744278632209,-700.0,0.000425,16]
[357655035,1744278632218,-500.0,0.00042699,31]
[357655036,1744278632228,-500.0,0.00042699,31]
[357655037,1744278632238,-500.0,0.00042699,31]
[357655038,1744278632247,-500.0,0.00042699,31]
[357655039,1744278632256,-500.0,0.00042699,31]
[357655040,1744278632266,-500.0,0.00042699,31]
[357655041,1744278632275,-500.0,0.00042699,31]
[357655042,1744278632286,-377.89473245,0.00042699,31]
[357655043,1744278632295,-500.0,0.00042699,31]
[357655044,1744278632304,-500.0,0.00042699,31]
[357655045,1744278632314,-500.0,0.00042699,31]
[357655046,1744278632323,-500.0,0.00042699,31]
[357655047,1744278632332,-500.0,0.00042699,31]
[357655048,1744278632343,-500.0,0.00042699,31]
[357655049,1744278632352,-500.0,0.00042699,31]
[357655050,1744278632362,-500.0,0.00042699,31]
[357655051,1744278632372,-500.0,0.00042699,31]
[357655052,1744278632381,-500.0,0.00042699,31]
[357655053,1744278632390,-500.0,0.00042699,31]
[357655054,1744278632399,-500.0,0.00042699,31]
[357655055,1744278632408,-500.0,0.00042699,31]
[357655056,1744278632417,-500.0,0.00042699,31]
[357655057,1744278632426,-500.0,0.00042699,31]
[357655058,1744278632436,-500.0,0.00042699,31]
[357655059,1744278632445,-500.0,0.00042699,31]
[357655060,1744278632455,-500.0,0.00042699,31]
[357655061,1744278632465,-500.0,0.00042699,31]
[357655062,1744278632475,-500.0,0.00042699,31]
[357655063,1744278632484,-500.0,0.00042699,31]
[357655064,1744278632494,-322.66787613,0.00042699,31]
[357655065,1744278632504,-500.0,0.00042699,31]
[357655066,1744278632513,-500.0,0.00042699,31]
[357655067,1744278632527,-500.0,0.00042699,31]
[357655068,1744278632536,-500.0,0.00042699,31]
[357655069,1744278632546,-500.0,0.00042699,31]
[357655070,1744278632555,-500.0,0.00042699,31]
[357655071,1744278632564,-200.0,0.00042699,31]
[357655072,1744278632574,-500.0,0.00042699,31]
[357655073,1744278632583,-500.0,0.00042699,31]
[357655074,1744278632594,-500.0,0.00042699,31]
[357655075,1744278632604,-500.0,0.00042699,31]
[357655076,1744278632614,-1132.21,0.000427,33]
[357655077,1744278632623,-1132.21,0.000427,33]
[357655078,1744278632632,-1132.21,0.000427,33]
[357655079,1744278632641,-1132.21,0.000427,33]
[357655080,1744278632651,-1132.21,0.000427,33]
[357655081,1744278632660,-1132.21,0.000427,33]
[357655082,1744278632670,-1132.21,0.000427,33]
[357655083,1744278632681,-1132.21,0.000427,33]
[357655084,1744278632691,-1132.21,0.000427,33]
[357655085,1744278632700,-1132.21,0.000427,33]
[357655086,1744278632709,-1132.21,0.000427,33]
[357655087,1744278632718,-1132.21,0.000427,33]
[357655088,1744278632728,-500.0,0.00042736,7]
[357655089,1744278632737,-302.89,0.00042736,7]
[357655090,1744278632747,-256.9976,0.0004278,2]
[357655091,1744278632756,-209.0,0.0004288,30]
[357655092,1744278632766,-205.0,0.0004288,2]
[357655093,1744278632775,-2398.87913003,0.00043,12]
[357655094,1744278632784,-158.0,0.00043,90]
[357655095,1744278632794,-158.0,0.00043014,90]
[357655096,1744278632803,-150.0,0.00043259,2]
[357655097,1744278632813,-5000.0,0.00043293,5]
[357655098,1744278632823,-150.0,0.00043343,30]
[357655099,1744278632833,-348.49,0.00043434,30]
[357655100,1744278632843,-348.49,0.00043434,30]
[357655101,1744278632852,-348.49,0.00043434,30]
[357655102,1744278632861,-348.49,0.00043434,30]
[357655103,1744278632870,-476.8,0.00043434,30]
[357655104,1744278632880,-150.0,0.0004348,30]
[357655105,1744278632890,-412.78115697,0.00043507,2]
[357655106,1744278632899,-268.8619,0.00043522,2]
[357655107,1744278632909,-150.0,0.00043617,30]
[357655108,1744278632919,-42398.4723,0.00043622,2]
[357655109,1744278632928,-1000.0,0.00043622,2]
[357655110,1744278632938,-765.8086,0.00043622,2]
[357655111,1744278632948,-1000.0,0.00043636,2]
[357655112,1744278632958,-26204.1391,0.00043636,2]
[357655113,1744278632968,-250.0,0.00043674,2]
[357655114,1744278632978,-250.0,0.00043674,2]
[357655115,1744278632987,-5000.0,0.00043681,120]
[357655116,1744278632997,-166.57969469,0.00043681,12]
[357655117,1744278633007,-2749.29816896,0.00043681,15]
[357655118,1744278633016,-201.48480878,0.00043681,2]
[357655119,1744278633027,-203.29169566,0.00043681,2]
[357655120,1744278633037,-284.72413792,0.00043681,2]
[357655121,1744278633048,-236.36544676,0.00043684,18]
[357655122,1744278633060,-402.0,0.0004369,2]
[357655123,1744278633070,-161.0,0.00043706,120]
[357655124,1744278633080,-161.0,0.00043716,120]
[357655125,1744278633091,-500.0,0.00043721,31]
[357655126,1744278633101,-415.52342884,0.00043721,31]
[357655127,1744278633111,-500.0,0.00043721,31]
[357655128,1744278633120,-500.0,0.00043721,31]
[357655129,1744278633129,-500.0,0.00043721,31]
[357655130,1744278633139,-390.71172059,0.00043721,31]
[357655131,1744278633149,-500.0,0.00043721,31]
[357655132,1744278633159,-500.0,0.00043721,31]
[357655133,1744278633168,-500.0,0.00043721,31]
[357655134,1744278633178,-500.0,0.00043721,31]
[357655135,1744278633188,-500.0,0.00043721,31]
[357655136,1744278633198,-500.0,0.00043721,31]
[357655137,1744278633212,-500.0,0.00043721,31]
[357655138,1744278633221,-500.0,0.00043721,31]
[357655139,1744278633231,-600.0,0.00043721,31]
[357655140,1744278633243,-3276.6305394,0.00043722,2]
[357655141,1744278633254,-931.0714631,0.00043722,2]
[357655142,1744278633263,-69288.5170031,0.00043722,2]
[357655143,1744278633273,-738.50084449,0.00043722,2]
[357655144,1744278633285,-161.0,0.00043726,120]
[357655145,1744278633295,-301.37,0.00043736,5]
[357655146,1744278633304,-151.0,0.00043736,14]
[357655147,1744278633314,-151.0,0.00043736,14]
[357655148,1744278633323,-280.96851,0.00043736,14]
[357655149,1744278633333,-280.96851,0.00043736,14]
[357655150,1744278633345,-500.0,0.00043736,2]
[357655151,1744278633355,-150.0,0.00043739,120]
[357655152,1744278633364,-2011.98922789,0.0004374,5]
[357655153,1744278633374,-152.0,0.00043752,8]
[357655154,1744278633384,-150.0,0.00043754,30]
[357655155,1744278633394,-864.4,0.00043755,2]
[357655156,1744278633404,-621.78829552,0.00043758,2]
[357655157,1744278633414,-500.0,0.00043763,2]
[357655158,1744278633424,-151.62,0.00043771,2]
[357655159,1744278633434,-151.62,0.00043771,2]
[357655160,1744278633443,-151.62,0.00043771,2]
[357655161,1744278633452,-151.62,0.00043771,2]
[357655162,1744278633461,-500.0,0.00043773,10]
[357655163,1744278633471,-429.52085486,0.00043773,10]
[357655164,1744278633480,-150.0,0.0004378,3]
[357655165,1744278633490,-150.0,0.0004378,3]
[357655166,1744278633499,-150.0,0.0004378,3]
[357655167,1744278633508,-1000.0,0.0004378,120]
[357655168,1744278633518,-1000.0,0.0004378,120]
[357655169,1744278633528,-1000.0,0.0004378,120]
[357655170,1744278633542,-1000.0,0.0004378,120]
[357655171,1744278633552,-1000.0,0.0004378,120]
[357655172,1744278633562,-1000.0,0.0004378,120]
[357655173,1744278633571,-1000.0,0.0004378,120]
[357655174,1744278633581,-1000.0,0.0004378,120]
[357655175,1744278633591,-246.81561592,0.0004378,120]
[357655176,1744278633601,-1492.0,0.0004378,7]
[357655177,1744278633611,-10589.3926246,0.00043781,2]
[357655178,1744278633621,-9222.83750112,0.00043781,2]
[357655179,1744278633630,-2262.99899031,0.00043781,10]
[357655180,1744278633640,-3414.75739138,0.00043781,2]
[357655181,1744278633650,-63154.40038036,0.00043781,2]
[357655182,1744278633659,-5123.30049538,0.00043781,7]
[357655183,1744278633669,-12816.16655086,0.00043781,2]
[357655184,1744278633679,-1917.84684891,0.00043781,2]
[357655185,1744278633688,-5013.3710993,0.00043781,2]
[357655186,1744278633698,-13789.5840227,0.00043781,3]
[357655187,1744278633707,-8619.64393475,0.00043781,2]
[357655188,1744278633718,-25317.25820665,0.00043781,2]
[357655189,1744278633727,-5832.22126913,0.00043781,2]
[357655190,1744278633737,-1834.06665869,0.00043781,2]
[357655191,1744278633747,-3238.39773181,0.00043781,2]
[357655192,1744278633756,-7075.6103277,0.00043781,2]
[357655193,1744278633766,-10689.62930254,0.00043781,2]
[357655194,1744278633776,-54181.14814594,0.00043781,2]
[357655195,1744278633786,-1602.99643389,0.00043781,2]
[357655196,1744278633795,-7764.882728,0.00043781,2]
[357655197,1744278633806,-41699.35284658,0.00043781,2]
[357655198,1744278633815,-8126.60002688,0.00043781,2]
[357655199,1744278633825,-1954.71721414,0.00043781,7]
[357655200,1744278633835,-4840.43492661,0.00043781,10]
[357655201,1744278633845,-5004.56732142,0.00043781,2]
[357655202,1744278633855,-2048.6231148,0.00043781,3]
[357655203,1744278633864,-18973.42560252,0.00043781,3]
[357655204,1744278633873,-14763.47561012,0.00043781,2]
[357655205,1744278633883,-2551.26832944,0.00043781,2]
[357655206,1744278633893,-10041.80122335,0.00043781,2]
[357655207,1744278633903,-5389.31656077,0.00043781,2]
[357655208,1744278633913,-17155.07176834,0.00043781,2]
[357655209,1744278633923,-10056.3086906,0.00043781,2]
[357655210,1744278633934,-2055.33549051,0.00043781,5]
[357655211,1744278633944,-1000.0,0.00043781,30]
[357655212,1744278633955,-1000.0,0.00043781,30]
[357655213,1744278633965,-1000.0,0.00043781,30]
[357655214,1744278634236,-1000.0,0.00043781,30]
[357655215,1744278634246,-1000.0,0.00043781,30]
[357655216,1744278634256,-1000.0,0.00043781,30]
[357655217,1744278634267,-1000.0,0.00043781,30]
[357655218,1744278634277,-1000.0,0.00043781,120]
[357655219,1744278634289,-1000.0,0.00043781,30]
[357655220,1744278634298,-1000.0,0.00043781,30]
[357655221,1744278634308,-1000.0,0.00043781,30]
[357655222,1744278634318,-2000.0,0.00043781,120]
[357655223,1744278634328,-1000.0,0.00043781,30]
[357655224,1744278634340,-1961.0,0.00043781,31]
[357655225,1744278634350,-1961.0,0.00043781,31]
[357655226,1744278634360,-1963.0,0.00043781,31]
[357655227,1744278634370,-1000.0,0.00043781,30]
[357655228,1744278634380,-1961.0,0.00043781,31]
[357655229,1744278634390,-1000.0,0.00043781,60]
[357655230,1744278634400,-413.0,0.00043781,120]
[357655231,1744278634409,-1000.0,0.00043781,30]
[357655232,1744278634420,-1000.0,0.00043781,30]
[357655233,1744278634430,-1000.0,0.00043781,60]
[357655234,1744278634440,-1000.0,0.00043781,30]
[357655235,1744278634450,-1000.0,0.00043781,30]
[357655236,1744278634460,-1000.0,0.00043781,30]
[357655237,1744278634470,-1000.0,0.00043781,30]
[357655238,1744278634480,-1000.0,0.00043781,60]
[357655239,1744278634490,-1000.0,0.00043781,30]
[357655240,1744278634500,-1000.0,0.00043781,30]
[357655241,1744278634510,-1000.0,0.00043781,30]
[357655242,1744278634519,-1000.0,0.00043781,30]
[357655243,1744278634529,-1000.0,0.00043781,60]
[357655244,1744278634539,-1000.0,0.00043781,120]
[357655245,1744278634548,-1000.0,0.00043781,120]
[357655246,1744278634558,-1000.0,0.00043781,30]
[357655247,1744278634569,-1000.0,0.00043781,30]
[357655248,1744278634578,-1000.0,0.00043781,30]
[357655249,1744278634588,-1000.0,0.00043781,60]
[357655250,1744278634598,-1000.0,0.00043781,60]
[357655251,1744278634607,-357.23957454,0.00043781,60]
[357655252,1744278634616,-1000.0,0.00043781,120]
[357655253,1744278634626,-1307.3,0.00043781,30]
[357655254,1744278634635,-1000.0,0.00043781,30]
[357655255,1744278634644,-1000.0,0.00043781,30]
[357655256,1744278634654,-1000.0,0.00043781,30]
[357655257,1744278634663,-1000.0,0.00043781,30]
[357655258,1744278634672,-1000.0,0.00043781,30]
[357655259,1744278634681,-275.5858494,0.00043781,30]
[357655260,1744278634691,-713.90726778,0.00043781,30]
[357655261,1744278634700,-229.8668615,0.00043781,30]
[357655262,1744278634709,-219480.07492192,0.00043781,30]
[357655266,1744278638271,-302.45,0.00042519,2]
[357655267,1744278638282,-1101.6032,0.00043536,2]
[357655268,1744278638291,-3213.3552351,0.00043722,2]
[357655269,1744278638300,-9884.37743685,0.00043781,30]
[357655270,1744278638311,-27896.6864652,0.00043781,30]
[357655272,1744278640195,-22815.49240703,0.00043781,30]
[357655273,1744278640210,-2288.4,0.00043781,30]
[357655274,1744278640222,-19935.5484683,0.00043781,30]
[357655279,1744278642880,-151.0,0.00041843,5]
[357655280,1744278642890,-222.5132,0.00042467,4]
[357655288,1744278644488,-478.7644596,0.00042467,4]
[357655289,1744278644498,-43.131819,0.00043781,7]
[357655291,1744278645060,-699.93597181,0.00043781,7]
[357655318,1744278645859,-333.335,0.00043781,7]
[357655322,1744278645998,-157.07664826,0.00043781,7]
[357655323,1744278646139,-27.52056093,0.00043781,7]
[357655324,1744278646149,-239.68227608,0.00043781,30]
[357655325,1744278646197,-478.97370909,0.00043781,30]
[357655335,1744278646745,-2522.4002902,0.00043781,30]
[357655345,1744279081583,788.66533811,0.00033,120]
[357655349,1744279509791,1101.76,0.00035,30]
[357655353,1744279530114,-205.12,0.00026849,2]
[357655354,1744279530136,-178.9493,0.00032546,2]
[357655355,1744279530159,-205.12,0.00032646,2]
[357655356,1744279530181,-306.36228907,0.00038,120]
[357655357,1744279530202,-205.12,0.00038443,2]
[357655358,1744279530225,-784.35,0.00039623,2]
[357655359,1744279530247,-306.36228907,0.0004,120]
[357655360,1744279530267,-1126.8352675,0.00040027,2]
[357655361,1744279531394,826.32,0.00035,30]
[357655362,1744279544826,619.74,0.00035,30]
[357655363,1744279562723,929.6,0.00035,30]
[357655364,1744279592788,929.6,0.00035,30]
[357655365,1744279633526,1225.65161125,0.00033,120]
[357655366,1744279637096,-151.1647325,0.00040027,2]
[357655367,1744279637117,-95.32702389,0.000403,3]
[357655368,1744279643084,-56.67297611,0.000403,3]
[357655369,1744279643104,-356.31,0.00041,2]
[357655370,1744279643125,-159.0,0.00041,14]
[357655371,1744279643146,-301.51,0.00041,5]
[357655372,1744279643167,-114.92945107,0.00041,5]
[357655373,1744279648085,-185.14054893,0.00041,5]
[357655374,1744279648106,-72.07123128,0.00041001,5]
[357655375,1744279705974,250.0,0.00019,2]
[357655376,1744279746119,-300.0,0.00021,2]
[357655377,1744279746142,-350.0,0.00023,2]
[357655381,1744279831964,-320.68,0.00041,2]
[357655382,1744279831974,-303.74,0.00041001,5]
[357655383,1744279831983,-59.55989317,0.00041001,5]
[357655394,1744279838192,-246.20010683,0.00041001,5]
[357655395,1744279838202,-303.2,0.00041001,5]
[357655396,1744279838213,-36.96447163,0.00041001,5]
[357655397,1744279838302,-266.46552837,0.00041001,5]
[357655398,1744279838312,-305.9,0.00041001,5]
[357655399,1744279838322,-305.63,0.00041001,5]
[357655400,1744279838331,-304.83,0.00041001,5]
[357655401,1744279838341,-305.67,0.00041001,5]
[357655402,1744279838350,-300.19,0.00041001,5]
[357655403,1744279838359,-304.37,0.00041001,5]
[357655404,1744279838369,-304.42,0.00041001,5]
[357655405,1744279838378,-230.64876872,0.00041001,5]
[357655406,1744279838388,-303.36,0.00041001,5]
[357655407,1744279838397,-304.78,0.00041001,5]
[357655408,1744279838406,-301.49,0.00041001,5]
[357655409,1744279838416,-300.57,0.00041001,5]
[357655411,1744279838425,-303.53,0.00041001,5]
[357655413,1744279838434,-300.15,0.00041001,5]
[357655414,1744279838444,-301.32,0.00041002,5]
[357655416,1744279838453,-303.08,0.00041002,5]
[357655417,1744279838463,-301.53,0.00041003,5]
[357655418,1744279838472,-304.07,0.00041004,5]
[357655419,1744279838482,-300.28,0.00041004,5]
[357655420,1744279838493,-303.91,0.00041005,5]
[357655421,1744279838502,-303.05,0.00041007,5]
[357655422,1744279838511,-303.91,0.00041009,5]
[357655423,1744279838521,-305.03,0.00041009,5]
[357655424,1744279838530,-301.21,0.00041012,5]
[357655425,1744279838540,-301.92,0.00041017,5]
[357655426,1744279838550,-304.72,0.00041018,5]
[357655427,1744279838560,-300.18,0.00041024,5]
[357655428,1744279838569,-303.8,0.00041024,5]
[357655429,1744279838579,-301.98,0.00041034,5]
[357655431,1744279838588,-302.46,0.00041034,5]
[357655433,1744279838600,-305.0,0.00041045,5]
[357655435,1744279838621,-303.38,0.00041061,5]
[357655436,1744279838630,-303.27,0.00041081,5]
[357655437,1744279838639,-301.09,0.00041112,5]
[357655438,1744279838650,-150.0,0.00041133,4]
[357655439,1744279838659,-152.0,0.00041133,4]
[357655440,1744279838668,-305.74,0.00041133,5]
[357655441,1744279838677,-301.83,0.00041154,5]
[357655442,1744279838688,-302.24,0.00041186,5]
[357655443,1744279838698,-304.19,0.00041209,5]
[357655444,1744279838707,-305.32,0.0004126,5]
[357655445,1744279838717,-302.9,0.00041281,5]
[357655446,1744279838726,-150.0,0.00041308,2]
[357655447,1744279838736,-305.11,0.00041371,5]
[357655448,1744279838746,-302.69,0.00041371,5]
[357655449,1744279838755,-460.90078331,0.000414,2]
[357655450,1744279838764,-1000.0,0.00041409,2]
[357655451,1744279838774,-177.24,0.00041425,2]
[357655452,1744279838783,-200.0,0.00041516,7]
[357655453,1744279838793,-303.96,0.00041528,5]
[357655454,1744279838802,-303.95,0.00041528,5]
[357655455,1744279838812,-302.2,0.00041528,5]
[357655456,1744279838821,-304.51,0.00041528,5]
[357655457,1744279838831,-304.83,0.00041528,5]
[357655458,1744279838840,-302.54,0.00041528,5]
[357655459,1744279838849,-302.79,0.00041528,5]
[357655460,1744279838858,-233.529,0.00041529,61]
[357655461,1744279838868,-301.15,0.00041529,5]
[357655462,1744279838877,-302.95,0.00041537,5]
[357655463,1744279838886,-301.06,0.00041537,5]
[357655464,1744279838895,-290.76981043,0.00041581,5]
[357655465,1744279838907,-13.38018957,0.00041581,5]
[357655466,1744279838916,-250.0,0.00041738,2]
[357655467,1744279838925,-764.28,0.00041743,30]
[357655468,1744279838934,-784.35,0.00041887,2]
[357655469,1744279838944,-304.62,0.00041894,5]
[357655470,1744279838954,-152.0,0.00041966,5]
[357655471,1744279838964,-23900.0,0.0004215,2]
[357655472,1744279838974,-500.0,0.00042173,10]
[357655473,1744279838984,-500.0,0.00042173,2]
[357655474,1744279838997,-505.39972622,0.00042173,2]
[357655475,1744279839007,-167.8402,0.00042295,7]
[357655476,1744279839016,-150.0,0.00042412,2]
[357655477,1744279839026,-1009.3614169,0.00042467,4]
[357655478,1744279839035,-167.8402,0.00042495,7]
[357655479,1744279839045,-167.8402,0.00042695,7]
[357655480,1744279839055,-430.87719249,0.00042699,31]
[357655481,1744279839065,-500.0,0.00042699,31]
[357655482,1744279839075,-602.26678761,0.00042699,31]
[357655483,1744279839084,-500.0,0.00042699,31]
[357655484,1744279839094,-996.42,0.000427,33]
[357655485,1744279839103,-996.42,0.000427,33]
[357655486,1744279839113,-996.42,0.000427,33]
[357655487,1744279839122,-996.42,0.000427,33]
[357655488,1744279839131,-996.42,0.000427,33]
[357655489,1744279839141,-996.42,0.000427,33]
[357655490,1744279839151,-996.42,0.000427,33]
[357655491,1744279839160,-996.42,0.000427,33]
[357655492,1744279839169,-996.42,0.000427,33]
[357655493,1744279839179,-996.42,0.000427,33]
[357655494,1744279839189,-996.42,0.000427,33]
[357655495,1744279839198,-996.42,0.000427,33]
[357655496,1744279839207,-500.0,0.00042781,7]
[357655497,1744279839216,-152.0,0.000428,6]
[357655498,1744279839226,-167.8402,0.00042895,7]
[357655499,1744279839237,-9981.0,0.00043,30]
[357655500,1744279839247,-612.72457814,0.00043,120]
[357655501,1744279839256,-962.04,0.00043,7]
[357655502,1744279839266,-167.8402,0.00043095,7]
[357655503,1744279839275,-159.0,0.00043151,90]
[357655504,1744279839285,-167.8402,0.00043295,7]
[357655505,1744279839295,-150.0,0.00043343,30]
[357655506,1744279839304,-268.8619,0.000434,2]
[357655507,1744279839314,-500.0,0.00043473,10]
[357655508,1744279839324,-500.0,0.00043473,10]
[357655509,1744279839334,-150.0,0.0004348,30]
[357655510,1744279839343,-167.8402,0.00043495,7]
[357655511,1744279839353,-15739.362354,0.000435,2]
[357655518,1744279840175,-452.81414994,0.000435,2]
[357655519,1744279840342,-1923.07119405,0.000435,2]
[357655520,1744279840354,-4287.36,0.000435,2]
[357655521,1744279840366,-797.6518777,0.000435,2]
[357655522,1744279840378,-1946.32387463,0.000435,2]
[357655528,1744279844777,-258.55435841,0.00041001,5]
[357655529,1744279844793,-42.01564159,0.00041001,5]
[357655530,1744279844803,-1285.08766926,0.00043435,2]
[357655539,1744279846275,-230.11420521,0.00043435,2]
[357655540,1744279846286,-1108.02585479,0.000435,2]
[357655541,1744279846298,-1240.4,0.000435,2]
[357655542,1744279846309,-1803.9,0.000435,2]
[357655544,1744279936033,5371.25362509,0.00036207,30]
[357655546,1744280708827,4867753.7114842,0.0002,2]
[357655547,1744280751111,-1385.54687795,0.00019,2]
[357655548,1744280751133,-156.05154127,0.000199,2]
[357655549,1744280751156,-6658.25382831,0.0002,2]
[357655550,1744280829110,-268.10162168,0.00019999,5]
[357655551,1744280829146,-200.62761529,0.00019999,5]
[357655552,1744280829175,-250.0,0.00019999,2]
[357655553,1744280829208,-500.0,0.00019999,2]
[357655554,1744280829250,-154.29797061,0.00019999,2]
[357655555,1744280829286,-12464.04459826,0.0002,2]
[357655556,1744280830099,-1803.37932645,0.0002,2]
[357655557,1744280848088,-370.07368095,0.0002,2]
[357655568,1744280947188,-598.37206358,0.000199,2]
[357655569,1744280947209,-617.18404239,0.00019999,2]
[357655570,1744280947231,-57911.83837403,0.0002,2]
[357655571,1744280947258,-26843.38776,0.0002,2]
[357655572,1744280950145,-95679.04444,0.0002,2]
[357655573,1744280951523,-4021.26595639,0.0002,2]
[357655575,1744280955142,-156.05154127,0.000199,2]
[357655576,1744280955165,-43704.54405818,0.0002,2]
[357655577,1744280958111,-3515.39662768,0.0002,2]
[357655578,1744280960090,-13728.83726347,0.0002,2]
[357655579,1744280963180,-13832.32979568,0.0002,2]
[357655586,1744280968245,-308589.2992,0.0002,2]
[357655587,1744280970127,-43151.45686623,0.0002,2]
[357655588,1744280970148,-595.33353012,0.0002,2]
[357655589,1744280970169,-6281.9006532,0.0002,2]
[357655590,1744280970188,-8030.7291602,0.00021,2]
[357655591,1744280970209,-250.0,0.00022,2]
[357655592,1744280970229,-4164.49891713,0.00024,5]
[357655593,1744280970250,-20930.40187312,0.000248,3]
[357655601,1744281032292,-500.0,0.00019973,2]
[357655602,1744281032302,-500.0,0.00024773,2]
[357655603,1744281032312,-503.45015987,0.00024773,2]
[357655604,1744281032322,-133651.59919288,0.000248,3]
[357655605,1744281032332,-21752.1169736,0.000249,3]
[357655606,1744281032342,-200.0,0.00025,2]
[357655607,1744281032351,-861.35353323,0.00025,2]
[357655608,1744281032360,-392.99,0.0002501,2]
[357655609,1744281032370,-1000.0,0.00025452,2]
[357655610,1744281032379,-4433.65,0.00026,2]
[357655611,1744281032389,-154.98,0.00026849,2]
[357655612,1744281032399,-250.0,0.00027,2]
[357655613,1744281032409,-1406.22006814,0.00027,14]
[357655614,1744281032418,-996.32384581,0.00027,2]
[357655615,1744281032428,-7026.45459391,0.00027387,3]
[357655616,1744281032438,-500.0,0.00027397,2]
[357655617,1744281032447,-500.0,0.00027397,2]
[357655618,1744281032457,-449.01157877,0.00027397,2]
[357655619,1744281032467,-781.2412629,0.0003,2]
[357655620,1744281032477,-1000.0,0.00030252,5]
[357655621,1744281032486,-291.85,0.00031347,2]
[357655622,1744281032496,-70264.5459391,0.0003137,3]
[357655623,1744281032508,-79757.7622365,0.0003137,3]
[357655624,1744281032523,-162871.42626514,0.0003138,2]
[357655625,1744281032544,-500.0,0.00032193,5]
[357655626,1744281032562,-290.48154422,0.00032193,5]
[357655628,1744281032572,-500.0,0.00032193,2]
[357655630,1744281032581,-153.06885563,0.00032193,5]